Cogmind - Beta 9.4 *** ADVENTURER MODE // 2020.03.01 @ 23:39:03 Player: Cogmind Result: Self-destructed Performance ------------- Evolutions (1) 500 Regions Visited (2) 400 Robots Destroyed (18) 90 Value Destroyed (387) 387 Prototype IDs (2) 40 Alien Tech Used (0) 0 Bonus (0) 0 TOTAL SCORE: 1417 Bonus ------- None Cogmind --------- Core Integrity 278/400 Matter 298/300 Energy 250/250 System Corruption 0% Temperature Cool (0) Movement Walking (120) Location -9/Materials Parts ------- > --- POWER (1) -------- Ion Engine > --- PROPULSION (2) --- Aluminum Leg Aluminum Leg > --- UTILITY (3) ------ Small Storage Unit > --- WEAPON (3) ------- (None) > --- INVENTORY (6) ---- Ion Engine Aluminum Leg Aluminum Leg Compact Wheel Flight Unit Peak State ------------ > --- POWER ------------ Light Ion Engine > --- PROPULSION ------- Compact Wheel Compact Wheel > --- UTILITY ---------- Small Storage Unit Weapon Shielding > --- WEAPON ----------- Medium Laser Small Laser Small Laser > --- INVENTORY -------- Ion Engine Light Ion Engine Aluminum Leg Aluminum Leg [Rating: 8] Favorites ----------- Power Light Ion Engine Engine Light Ion Engine Propulsion Light Treads Treads Light Treads Leg Aluminum Leg Wheel Compact Wheel Flight Unit Flight Unit Utility Small Storage Unit Storage Small Storage Unit Protection Weapon Shielding Weapon Small Laser Energy Gun Small Laser Ballistic Gun Light Assault Rifle Build | -11 -10 -9 ------- Run | Scr Mat Mat Slots Evolved 2 | . . 2 Power . | . . . Propulsion . | . . . Utility 1 | . . 1 Weapon 1 | . . 1 Parts Attached 17 | 6 3 8 Power 3 | 1 . 2 Engine 3 | 1 . 2 Core . | . . . Reactor . | . . . Propulsion 7 | 2 2 3 Treads 2 | 2 . . Leg 2 | . . 2 Wheel 2 | . 2 . Hover . | . . . Flight 1 | . . 1 Utility 2 | 1 1 . Device . | . . . Storage 1 | 1 . . Processor . | . . . Hackware . | . . . Protection 1 | . 1 . Artifact . | . . . Weapon 5 | 2 . 3 Energy Gun 4 | 2 . 2 Energy Cannon . | . . . Ballistic Gun 1 | . . 1 Ballistic Cannon . | . . . Launcher . | . . . Special Weapon . | . . . Impact Weapon . | . . . Slashing Weapon . | . . . Piercing Weapon . | . . . Special Melee Weapon . | . . . Unidentified Prototypes . | . . . Parts Lost 9 | . . 9 Power 2 | . . 2 Propulsion 1 | . . 1 Utility 1 | . . 1 Weapon 5 | . . 5 Highest Loss Streak 6 | . . 6 Average Slot Usage (%) 88 | . 96 71 Engine 11 | . 14 7 Treads 11 | . 16 . Leg 3 | . . 11 Wheel 10 | . 11 7 Storage 13 | . 14 11 Protection 9 | . 10 8 Energy Gun 25 | . 28 20 Ballistic Gun 1 | . . 4 Naked Turns . | . . . Heaviest Build 12 | 10 11 12 Greatest Support 40 | 40 40 32 Greatest Overweight (x) 2 | . . 2 Average Overweight (x) . | . . . Largest Inventory Capacity 6 | 6 6 6 Average Capacity 5 | 5 6 6 Most Carried 6 | 6 6 6 Average Carried 5 | 4 5 3 Final Capacity 6 | 6 6 6 Final Carried 6 | 6 5 5 Class Distribution -------------------- 89% | Mutant 10% | Tank Dominant Class ---------------- Mutant | -10/Materials Mutant | -9/Materials Resources | -11 -10 -9 ----------- Run | Scr Mat Mat Matter Collected 359 | 219 71 69 Remotely . | . . . Salvage Created 465 | . 156 309 Parts 37 | . 19 18 Haulers Intercepted . | . . . Recyclers Shooed . | . . . Parts Field Recycled . | . . . Retrieved Matter . | . . . Parts Self-Destructed . | . . . Prevented . | . . . Kills | -11 -10 -9 ------- Run | Scr Mat Mat Combat Hostiles Destroyed 14 | . 5 9 Guns 14 | . 5 9 Classes Destroyed 5 | . 4 1 Builder 1 | . 1 . Watcher 3 | . 2 1 Swarmer 6 | . 3 3 Grunt 7 | . 2 5 Brawler 1 | . . 1 Best Kill Streak 5 | . 5 3 Combat Bots Only 3 | . 3 3 Max Kills in Single Turn 2 | . 2 1 Gunslinging 1 | . 1 . Exploded . | . . . Melee . | . . . Uniques/NPCs Destroyed . | . . . Combat | -11 -10 -9 -------- Run | Scr Mat Mat Damage Taken 774 | . 85 689 Core 134 | . 12 122 Absorbed by Shields . | . . . Core Remaining (%) 97 | 100 95 . Volleys Fired 51 | . 15 36 Largest 3 | . 2 3 Hottest 130 | . 90 130 Shots Fired 95 | . 30 65 Gun 95 | . 30 65 Cannon . | . . . Launcher . | . . . Special . | . . . Kinetic 21 | . . 21 Thermal 74 | . 30 44 Explosive . | . . . Electromagnetic . | . . . Robot Hit Streak 22 | . 7 22 Robot Miss Streak 3 | . 1 3 Penetration Max . | . . . Secondary Targets 4 | . 1 3 Max Gunslinging Chain 1 | . 1 1 Shots Hit Robots 73 | . 23 50 Core Hits 30 | . 11 19 Critical Hits . | . . . Critical Kills . | . . . Critical Parts Destroyed . | . . . Melee Attacks . | . . . Impact . | . . . Slashing . | . . . Piercing . | . . . Sneak Attacks . | . . . Combat Hostiles . | . . . Follow-up Attacks . | . . . Damage Inflicted 686 | . 239 447 Guns 686 | . 239 447 Cannons . | . . . Explosions . | . . . Melee . | . . . Ramming . | . . . Kinetic 158 | . . 158 Thermal 528 | . 239 289 Explosive . | . . . Electromagnetic . | . . . Impact . | . . . Slashing . | . . . Piercing . | . . . Highest Corruption . | . . . Average Corruption . | . . . Corruption Purged . | . . . Overload Shots . | . . . Overflow Damage . | . . . Projectiles . | . . . Explosions . | . . . Melee . | . . . Knockbacks . | . . . Impact . | . . . Kinetic . | . . . Secondary . | . . . Self-Inflicted Damage . | . . . Shots . | . . . Rammed . | . . . Targets Rammed . | . . . Kicked . | . . . Crushed . | . . . Highest Temperature 289 | . 210 289 Average Temperature 113 | . 75 138 Received Heat Transfer 357 | . . 357 Effects 3 | . . 3 Energy Bleed 2 | . . 2 Interference 1 | . . 1 Siege Activations . | . . . Robots Corrupted . | . . . Combat Hostiles . | . . . Parts Fried . | . . . Impact Corruptions . | . . . Robots Melted . | . . . Combat Hostiles . | . . . Parts Melted 6 | . 1 5 Heat Transferred 1377 | . 632 745 Parts Sabotaged . | . . . Parts Stolen . | . . . Parts Stripped . | . . . Power Chain Reactions . | . . . Missiles Intercepted . | . . . Alert | -11 -10 -9 ------- Run | Scr Mat Mat Peak Influence 184 | . 184 147 Average Influence 57 | . 64 88 Maximum Alert Level . | . . . Low Security (%) 100 | 100 100 100 Level 1 . | . . . Level 2 . | . . . Level 3 . | . . . Level 4 . | . . . Level 5 . | . . . High Security . | . . . Max Security . | . . . Squads Dispatched 3 | . 1 2 Investigation 2 | . 1 1 Extermination . | . . . Reinforcement 1 | . . 1 Assault . | . . . Garrison . | . . . Intercept . | . . . Construction Impeded . | . . . Haulers Reinforced . | . . . Stealth | -11 -10 -9 --------- Run | Scr Mat Mat Distress Signals 1 | . 1 . Communications Jammed . | . . . Distress Signals . | . . . Times Spotted 22 | . 8 14 Peak Tracking Total 5 | . 4 5 Tactical Retreats . | . . . Traps | -11 -10 -9 ------- Run | Scr Mat Mat Traps Triggered . | . . . Indirectly . | . . . Trap Hack Attempts . | . . . Triggered . | . . . Disarmed . | . . . Reprogrammed . | . . . Reused . | . . . Traps Extracted . | . . . Installed . | . . . Triggered . | . . . Machines | -11 -10 -9 ---------- Run | Scr Mat Mat Machines Disabled . | . . . Max in Single Turn . | . . . Machines Sabotaged . | . . . Garrisons Compromised . | . . . Overloaded Fab Kills . | . . . Fab Network Shutdowns . | . . . Hacking | -11 -10 -9 --------- Run | Scr Mat Mat Machines Accessed 4 | . 3 1 Terminals 3 | . 2 1 Fabricators . | . . . Repair Stations . | . . . Recycling Units 1 | . 1 . Scanalyzers . | . . . Garrison Access . | . . . Total Hacks 16 | . 12 4 Successful 12 | . 9 3 Failed 4 | . 3 1 Catastrophic 1 | . 1 . Database Lockouts . | . . . Manual . | . . . Terminals 13 | . 9 4 Fabricators . | . . . Repair Stations . | . . . Recycling Units 3 | . 3 . Scanalyzers . | . . . Garrison Access . | . . . Terminal Hacks 9 | . 6 3 Prototype ID Bank 1 | . . 1 Unreport Threat 1 | . . 1 Locate Traps 1 | . 1 . Dispatch Records 2 | . 1 1 Surveillance Status 1 | . 1 . Hauler Manifests 1 | . 1 . Registered Components 1 | . 1 . Zone Layout 1 | . 1 . Fabricator Hacks . | . . . Repair Station Hacks . | . . . Recycling Unit Hacks 3 | . 3 . Recycle Component 2 | . 2 . Process 1 | . 1 . Scanalyzer . | . . . Garrison Access Hacks . | . . . Unauthorized Hacks . | . . . Terminals . | . . . Fabricators . | . . . Repair Stations . | . . . Recycling Units . | . . . Scanalyzers . | . . . Garrison Access . | . . . Data Cores Recovered . | . . . Used . | . . . Hacking Detections 4 | . 3 1 Full Trace Events 3 | . 2 1 Feedback Events . | . . . Feedback Blocked . | . . . Robot Schematics Acquired . | . . . Robots Built . | . . . Matter . | . . . Time . | . . . Total Robot Build Rating . | . . . Part Schematics Acquired . | . . . Parts Built . | . . . Matter . | . . . Time . | . . . Total Part Build Rating . | . . . Parts Repaired . | . . . Time . | . . . Parts Recycled 2 | . 2 . Recycled Matter 234 | . 234 . Retrieved Matter . | . . . Retrieved Components . | . . . Parts Scanalyzed . | . . . Part Schematics Acquired . | . . . Parts Damaged . | . . . Bothacking | -11 -10 -9 ------------ Run | Scr Mat Mat Used RIF Installer . | . . . Robots Hacked . | . . . Non-combat . | . . . Combat . | . . . Robot Hacks Applied . | . . . Relay Couplers Released . | . . . Robots Rewired . | . . . Allies Hacked . | . . . Hacks Repelled . | . . . Allies | -11 -10 -9 -------- Run | Scr Mat Mat Total Allies . | . . . Largest Group . | . . . Highest-Rated Group . | . . . Highest-Rated Ally . | . . . Total Orders . | . . . Ally Attacks . | . . . Total Damage . | . . . Kills . | . . . Allies Corrupted . | . . . Allies Melted . | . . . Intel | -11 -10 -9 ------- Run | Scr Mat Mat Robot Analysis Total . | . . . Derelict Logs Recovered . | . . . Drone Launches . | . . . Drone Recoveries . | . . . Exploration | -11 -10 -9 ------------- Run | Scr Mat Mat Turns Passed 613 | 121 339 153 Spaces Moved 333 | 68 220 45 Core 7 | 7 . . Treads 168 | 61 107 . Legs 14 | . . 14 Wheels 141 | . 113 28 Hover . | . . . Flight 3 | . . 3 Fastest Speed 50 | 50 100 100 Average Speed 131 | 148 129 113 Slowest Speed 205 | 160 160 205 Overloaded Moves . | . . . Propulsion Burnouts . | . . . Robots Hopped . | . . . Cave-ins Triggered . | . . . Exploration Rate (%) 15 | 6 37 4 Regions Visited 2 Branch Regions . Pre-discovered Areas . | . . . Known Exits Taken . | . . . Unknown Exits Taken 2 | 1 1 . Scrap Searched . | . . . Spaces Dug . | . . . Terrain Destroyed . | . . . Melee . | . . . Projectile . | . . . AOE . | . . . Actions | -11 -10 -9 --------- Run | Scr Mat Mat Total 428 | 89 244 95 Wait 3 | . 3 . Move 331 | 67 219 45 Hop . | . . . Pick Up 23 | 14 3 6 Fast Attach . | . . . Attach 13 | 6 1 6 Detach . | . . . Swap 4 | . 2 2 Drop 3 | 2 1 . Fire 51 | . 15 36 Melee . | . . . Ram . | . . . Kick . | . . . Crush . | . . . Escape Stasis . | . . . Rewire . | . . . Trap . | . . . Miscellaneous . | . . . Route ------- -11/Scrapyard -10/Materials (discovered 2 exits: *Mat / [*Min]) -9/Materials History --------- Turn | Location | Event 15 | -11/Scrapyard | Discovered new exit (range 15) 122 | -11/Scrapyard | Entered Materials 303 | -10/Materials | Discovered new exit (range 12) 309 | -10/Materials | Build established: Mutant 369 | -10/Materials | Discovered new exit (range 3) 461 | -10/Materials | Entered another Materials area 461 | -9/Materials | Evolved 2 slots: Utility x1, Weapon x1 611 | -9/Materials | Lost 6 parts (1p1u4w) 614 | -9/Materials | Self-destructed Last Messages --------------- 00566_ K-01 Serf collects debris. 00570_ G-34 Mercenary destroyed. 00570_ K-01 Serf collects debris. 00575_ G-34 Mercenary destroyed. 00576_ Weapon Shielding destroyed. 00576_ K-01 Serf collects debris. 00580_ Lgt. Ion Engine destroyed. 00580_ R-06 Scavenger collects Sml. Laser. 00582_ K-01 Serf collects debris. 00582_ G-34 Mercenary destroyed. 00583_ R-06 Scavenger collects Aluminum Leg. 00585_ K-01 Serf collects debris. 00585_ Acquired Aluminum Leg. 00588_ Acquired 9 matter. 00589_ K-01 Serf collects debris. 00592_ Acquired Ion Engine. 00595_ K-01 Serf collects debris. 00595_ Acquired 10 matter. 00599_ K-01 Serf collects debris. 00613_ Lgt. Assault Rifle destroyed. Map ----- +----------------------------------------------------+ | ?????????????????????????????????????????????????? | | ??????????????????? ???????????????????????????? | | ??????????????????# "??????????????????????????? | | ??????????????????# ""?????????????????????????? | | ??????????????????# ??????????????????????????? | | ??????????????????# ??????????????????????????? | | ??????????????????# #??????????????????????????? | | ??????????????????# #??????????????????????????? | | ??????????????????# #??????????????????????????? | | ??????????????????+ #??????????????????????????? | | ??????????????????# #??????????????????????????? | | ??????????????????# #??????????????????????????? | | ?????????????????## ##?????????????????????????? | | ??????????######## #?????????????????????????? | | ??????????# #?????????????????????????? | | ??????????# T%!+?????????????????????????? | | ??????????# #?????????????????????????? | | ??????????####+### #?????????????????????????? | | ???????????? ## ##?????????????????????????? | | ??????????# """ ## %########???????????????????? | | ??????????# "T" ## %*# #???????????????????? | | ??????????# ##=%*# """ #???????????????????? | | ??????????# ##% %# """ #???????????????????? | | ??????????# ## %# """ #???????????????????? | | ??????????######### + #???????????????????? | | ??????????????????##### @ #???????????????????? | | ??????????????????????# g /Y ????????????? | | ??????????????????????# "" # ????????? | | ??????????????????????#%%""" #?? ####T?????????? | | ??????????????????????#% S" #????##?????????????? | | ??????????????????????# """ #???????????????????? | | ??????????????????????+ """ #???????????????????? | | ??????????????????????# ?#???????????????????? | | ??????????????????????######?????????????????????? | | ?????????????????????????????????????????????????? | | ?????????????????????????????????????????????????? | | ?????????????????????????????????????????????????? | | ?????????????????????????????????????????????????? | | ?????????????????????????????????????????????????? | | ?????????????????????????????????????????????????? | | ?????????????????????????????????????????????????? | | ?????????????????????????????????????????????????? | | ?????????????????????????????????????????????????? | | ?????????????????????????????????????????????????? | | ?????????????????????????????????????????????????? | | ?????????????????????????????????????????????????? | | ?????????????????????????????????????????????????? | | ?????????????????????????????????????????????????? | | ?????????????????????????????????????????????????? | | ?????????????????????????????????????????????????? | +----------------------------------------------------+ Best States ------------- Heat Dissipation 28 Energy Generation 10 Energy Capacity 250 Matter Stores 300 Matter Capacity 300 Sight Range 16 Terrain Scan Density 10 Resistance: KI 20 Resistance: TH 20 Resistance: EX 20 Resistance: EM 20 Resistance: I 20 Resistance: S 20 Resistance: P 20 Weapon Shielding 33 Evasion (%) 40 Recoil Reduction 2 Offensive Hacking 10 Item Schematics ----------------- None Robot Schematics ------------------ None Fabricated ------------ Nothing Alien Tech Used ----------------- None Achievements -------------- None Challenges ------------ None Game ------ Seed InertialSurveybotAnalyzer Manual? 0 Play Time 00:12:13 Cumulative 8.6 hours Start 2020.02.25 @ 03:38:25 End 2020.03.01 @ 23:39:03 Sessions 3 Manual Loads 0 Difficulty Adventurer Special Mode None Game No. 6 Rogue 3 Adventurer 2 Explorer 1 Win Type - Total 0 Types 0/0/0/0/0/0/0 Lore% 13 Gallery% 13 Achievement% 12 Wizard Run 0 Options --------- ASCII 0 Keyboard 0 Movement Mouse Keybinds 0 Fullscreen 2 Font 18/CogNarrow Map View 76x50 Tactical HUD 1 Map Filters NONE Filters NONE Steam 1 RUN: fa49d8a0-2ee6-4c77-93b1-3f29a2f00d30